bitfinex/quotes_ETHUSD_20250213
["timestamp","ask_amount","ask_price","bid_price","bid_amount"]
[1739455796757,3.78544,2641.7,2639.6,6.004]
[1739455797139,3.78727,2640.5,2639.6,4.42428319]
[1739455797431,3.7842,2642.6,2639.7,3.0]
[1739455797578,0.804,2642.7,2639.6,4.42428319]
[1739455797777,0.804,2642.7,2640.5,3.78715]
[1739455797979,3.78527,2641.9,2640.2,3.0]
[1739455798422,3.78456,2642.4,2640.3,3.78744]
[1739455798630,3.78456,2642.4,2640.1,6.15382248]
[1739455798631,3.78701,2640.7,2640.1,6.004]
[1739455798846,3.78701,2640.7,2639.8,3.78814]
[1739455798980,3.0,2641.9,2640.1,6.004]
[1739455799178,3.7864,2641.1,2640.1,6.004]
[1739455799379,3.78601,2641.4,2640.2,3.78756]
[1739455799615,4.54522877,2642.3,2640.2,6.004]
[1739455799616,0.76064877,2642.3,2640.2,6.004]
[1739455799821,0.58803499,2643.1,2640.2,6.004]
[1739455799975,3.78326,2643.3,2640.8,3.78661]
[1739455800178,3.78502,2642.0,2640.3,4.57334]
[1739455800378,3.78463,2642.3,2640.6,3.78688]
[1739455800632,3.78517,2641.9,2640.9,3.78657]
[1739455800842,3.78431,2642.5,2641.4,3.78575]
[1739455800974,3.78445,2642.4,2641.5,3.78565]
[1739455801178,0.005,2643.4,2641.3,3.78592]
[1739455801381,0.005,2643.4,2640.4,6.004]
[1739455801382,6.34152142,2643.2,2640.4,6.004]
[1739455801631,3.0,2642.3,2640.3,0.7859]
[1739455801842,3.7873,2640.5,2639.5,10.57845]
[1739455801988,3.78776,2640.1,2639.2,3.78894]
[1739455802190,3.78817,2639.8,2638.6,0.8005]
[1739455802391,3.78782,2640.1,2638.8,3.78956]
[1739455802591,3.78731,2640.4,2639.3,3.78877]
[1739455802928,3.78698,2640.7,2638.8,3.0]
[1739455803096,3.78698,2640.7,2639.6,3.78844]
[1739455803287,3.78698,2640.7,2639.7,3.7883]
[1739455803642,3.78653,2641.0,2638.8,3.78958]
[1739455803643,6.0615,2641.0,2638.8,3.78958]
[1739455803854,3.78771,2640.2,2639.0,3.78917]
[1739455804029,3.78703,2640.6,2639.4,3.7887]
[1739455804232,3.78722,2640.5,2639.6,3.78843]
[1739455804386,3.78688,2640.7,2639.4,3.7886]
[1739455804590,3.78688,2640.7,2638.6,4.259549]
[1739455804591,6.0614,2641.1,2639.5,3.78846]
[1739455804853,2.275,2640.6,2638.6,0.8005]
[1739455804991,3.78858,2639.6,2638.6,4.59024]
[1739455805186,3.79551,2640.0,2639.1,3.78911]
[1739455805428,3.78573,2641.5,2639.1,3.78911]
[1739455805592,3.78931,2639.1,2638.1,3.79054]
[1739455805791,3.78888,2639.3,2638.3,3.79023]
[1739455806033,3.78914,2639.2,2638.3,3.79031]
[1739455806235,3.78914,2639.2,2637.8,6.8055]
[1739455806236,2.275,2639.8,2638.1,3.79054]
[1739455806436,6.06317,2639.8,2638.3,3.79029]
[1739455806636,0.0075,2639.4,2638.3,3.79029]
[1739455806901,3.0,2639.9,2638.1,3.79047]
[1739455807040,3.0,2639.9,2637.8,0.8005]
[1739455807041,3.78802,2639.9,2637.8,0.8005]
[1739455807250,3.0,2639.9,2637.8,0.8005]
[1739455807449,3.78941,2639.0,2637.8,0.8005]
[1739455807674,3.78958,2638.9,2638.0,3.79063]
[1739455807886,0.0075,2638.7,2637.8,0.8005]
[1739455808210,0.0075,2638.7,2637.8,4.59151]
[1739455808355,3.78985,2638.7,2637.8,3.79099]
[1739455808695,3.78976,2638.7,2637.8,3.79099]
[1739455808900,3.78989,2638.6,2637.8,3.79099]
[1739455809095,3.78989,2638.6,2636.7,9.7985]
[1739455809096,3.7911,2637.8,2636.0,0.7598]
[1739455809265,3.79095,2637.9,2636.0,6.7658]
[1739455809463,3.79061,2638.1,2636.1,7.58696]
[1739455809688,3.78974,2638.7,2636.0,6.7658]
[1739455809889,3.79017,2638.4,2637.0,3.79218]
[1739455810094,3.79091,2637.9,2637.1,3.79199]
[1739455810405,3.0,2638.2,2636.0,6.7658]
[1739455810587,6.15382248,2638.5,2636.0,6.7658]
[1739455810926,3.79066,2638.1,2637.3,3.79174]
[1739455811278,3.79163,2637.4,2636.7,3.79256]
[1739455811588,0.76533303,2638.9,2636.7,3.79251]
[1739455811589,3.79146,2637.6,2636.7,3.79251]
[1739455811790,3.79149,2637.5,2636.5,3.79288]
[1739455811990,3.79149,2637.5,2636.6,3.79271]
[1739455812208,3.79046,2638.2,2636.0,6.7658]
[1739455812377,3.79162,2637.4,2636.0,6.7658]
[1739455812571,3.791,2637.9,2636.0,6.7658]
[1739455812775,3.79099,2637.9,2637.1,3.79203]
[1739455813030,3.79099,2637.9,2636.9,3.79232]
[1739455813171,4.32394181,2638.9,2637.6,3.7913]
[1739455813377,0.27089249,2638.1,2637.6,3.79121]
[1739455813688,0.27089249,2638.1,2637.9,3.79077]
[1739455813897,0.27089249,2638.1,2638.0,3.79075]
[1739455814480,0.0075,2638.6,2637.5,0.7513]
[1739455814672,3.79073,2638.1,2637.1,3.79692]
[1739455814878,3.79171,2637.4,2637.1,0.005]
[1739455815125,3.7919,2637.2,2637.1,0.005]
[1739455815423,3.79106,2637.8,2637.1,3.797]
[1739455815719,0.53447181,2638.6,2637.1,3.797]
[1739455815720,3.79044,2638.3,2637.5,0.98008332]
[1739455815903,7.58088,2638.3,2637.5,3.79137]
[1739455816112,3.79063,2638.1,2637.5,3.79137]
[1739455816426,3.79105,2637.8,2637.1,0.005]
[1739455816728,3.79041,2638.3,2637.5,3.79138]
[1739455816879,3.79007,2638.5,2637.1,0.005]
[1739455817081,3.79003,2638.5,2637.7,3.79108]
[1739455817326,0.379003,2638.5,2637.4,3.79161]
[1739455817635,3.79067,2638.1,2637.3,0.7577]
[1739455817796,3.79026,2638.4,2637.6,3.79118]
[1739455818138,3.804,2639.2,2638.3,3.79018]
[1739455818139,4.59309,2639.2,2638.3,3.79018]
[1739455818292,3.78909,2639.2,2638.5,3.78989]
[1739455818495,3.7888,2639.4,2637.7,3.0]
[1739455818705,3.78911,2639.2,2638.5,3.7899]
[1739455819031,3.78881,2639.4,2638.6,3.78978]
[1739455819324,0.804,2640.0,2637.8,4.470102]
[1739455819325,3.78825,2639.8,2639.1,3.78916]
[1739455819630,0.34179051,2639.3,2638.7,3.78969]
[1739455819925,0.34179051,2639.3,2637.5,3.79137]
[1739455819926,3.7899,2638.6,2637.1,0.005]
[1739455820136,3.79042,2638.3,2637.1,0.005]
[1739455820281,3.79042,2638.3,2637.5,3.79136]
[1739455820484,3.79042,2638.3,2637.4,3.79156]
[1739455820700,3.78902,2639.2,2637.3,4.54942]
[1739455821030,3.79069,2638.1,2637.3,4.54935]
[1739455821197,3.79038,2638.3,2637.3,0.7577]
[1739455821403,0.7624,2638.7,2637.1,0.005]
[1739455821586,3.79177,2637.3,2637.1,0.005]
[1739455821786,3.79218,2637.0,2636.0,0.8229]
[1739455822131,2.275,2636.6,2634.7,6.8062]
[1739455822334,0.799,2638.1,2635.3,6.15382248]
[1739455822485,3.79147,2637.5,2636.7,3.79259]
[1739455822811,3.79147,2637.5,2635.5,0.7922]
[1739455822812,2.275,2637.5,2635.5,0.7922]
[1739455823345,3.79107,2637.8,2635.6,0.03792874]
[1739455823486,0.71142565,2638.0,2637.0,3.79206]
[1739455823693,3.79104,2637.8,2635.9,3.0]
[1739455824014,3.79104,2637.8,2635.8,9.94769248]
[1739455824015,3.79178,2637.3,2636.5,3.79283]
[1739455824227,3.79248,2636.8,2635.5,0.7922]
[1739455824387,2.275,2637.2,2635.5,0.7922]
[1739455824787,0.71142565,2638.0,2637.8,3.791]
[1739455824996,0.71142565,2638.0,2637.4,3.79149]
[1739455824997,4.35886295,2637.6,2637.4,3.79149]
[1739455825195,4.35886295,2637.6,2637.5,3.79146]
[1739455825375,2.95e-06,2637.6,2637.5,8.332669]
[1739455825688,2.95e-06,2637.6,2637.5,4.57436]
[1739455826098,2.95e-06,2637.6,2637.5,7.57436]
[1739455826798,2.95e-06,2637.6,2637.5,4.57436]
[1739455827137,3.7999623,2637.8,2637.5,0.7829]
[1739455827389,3.7999623,2637.8,2637.7,3.79118]
[1739455827689,1.25683753,2639.3,2637.7,13.00036248]
[1739455827893,3.78941,2639.0,2638.2,3.79035]
[1739455828038,3.78947,2638.9,2637.7,6.01]
[1739455828389,3.7895,2638.9,2638.2,3.79034]
[1739455828601,3.78922,2639.1,2638.3,3.79021]
[1739455828802,1.25683753,2639.3,2638.5,3.78998]
[1739455829001,1.25683753,2639.3,2637.8,3.79089]
[1739455829155,3.78994,2638.6,2637.7,6.01]
[1739455829499,5.04576753,2639.3,2638.3,3.7903]
[1739455829650,5.04576753,2639.3,2637.7,6.01]
[1739455829856,5.04576753,2639.3,2638.3,3.79026]
[1739455830154,3.78905,2639.2,2637.8,3.0]
[1739455830360,1.25683753,2638.8,2638.5,3.79003]
[1739455830777,1.25683753,2638.8,2638.7,3.78974]
[1739455830989,1.25683753,2638.8,2638.6,3.78988]
[1739455831189,1.25683753,2638.8,2638.5,3.78989]
[1739455832056,1.25683753,2638.8,2638.3,3.79031]
[1739455832277,0.06543293,2638.7,2637.7,6.01]
[1739455832584,1.25683753,2638.8,2637.8,3.79096]
[1739455832930,3.7905,2638.2,2637.0,3.79217]
[1739455833109,5.04667753,2638.7,2637.9,3.79078]
[1739455833427,3.79013,2638.5,2637.7,3.79114]
[1739455833628,3.79013,2638.5,2637.9,3.79079]
[1739455833925,0.06171452,2638.4,2638.1,3.79047]
[1739455834073,1.53250517,2638.7,2638.2,3.79042]
[1739455834272,0.06146836,2638.6,2638.0,3.79071]
[1739455834487,0.06146836,2638.6,2638.2,3.7904]
[1739455834992,0.06146836,2638.6,2638.5,3.79003]
[1739455835521,1.25683753,2638.7,2638.6,3.78988]
[1739455835672,1.31835827,2638.7,2638.6,3.78988]
[1739455835872,1.31835827,2638.7,2638.4,3.79017]
[1739455836084,5.10822827,2638.7,2637.6,3.79132]
[1739455836451,0.06152074,2638.7,2637.7,0.0379035]
[1739455836733,7.4e-07,2638.7,2638.6,3.78988]
[1739455836888,3.78884,2639.4,2638.3,3.79028]
[1739455837088,0.05606048,2639.3,2638.8,3.78947]
[1739455837428,3.78867,2639.5,2638.9,3.78945]
[1739455837584,0.05606048,2639.2,2638.9,3.78945]
[1739455837788,3.78867,2639.5,2638.2,6.15382248]
[1739455838027,3.7953,2640.1,2638.3,3.79031]
[1739455838028,3.84524048,2639.1,2638.3,3.79031]
[1739455838240,3.78913,2639.2,2638.5,3.78993]
[1739455838392,3.84539048,2639.0,2637.9,3.0]
[1739455838588,3.78938,2639.0,2638.4,3.79012]
[1739455838789,5.70853059,2638.7,2638.5,3.79]
[1739455839047,5.70853059,2638.7,2638.6,3.78988]
[1739455839338,5.70853059,2638.7,2638.6,4.59008]
[1739455839541,5.70853059,2638.7,2638.6,0.8002]
[1739455839799,5.70853059,2638.7,2638.5,3.78991]
[1739455839957,5.70853059,2638.7,2638.0,4.59075]
[1739455839958,5.70853059,2638.7,2638.0,4.59069]
[1739455840168,5.70853059,2638.7,2638.0,0.8]
[1739455840314,3.79,2638.6,2638.0,4.59068]
[1739455840511,3.79061,2638.1,2637.3,0.781]
[1739455840862,5.70853059,2638.7,2637.5,3.79134]
[1739455840863,3.79059,2638.2,2637.5,3.79134]
[1739455841200,3.79059,2638.2,2637.3,0.781]
[1739455841201,3.79113,2637.8,2637.3,0.781]
[1739455841510,3.79003,2638.5,2637.3,4.57269]
[1739455841704,3.79012,2638.5,2637.9,3.79086]
[1739455841921,3.84368008,2638.7,2637.6,3.79128]
[1739455842103,7.63342008,2638.7,2637.9,3.79082]
[1739455842343,3.79006,2638.5,2637.9,3.79082]
[1739455842548,3.79041,2638.3,2637.5,3.79133]
[1739455842706,3.84368008,2638.7,2637.3,4.57269]
[1739455842707,3.79079,2638.0,2637.3,4.57269]
[1739455842914,3.79012,2638.5,2637.8,3.79096]
[1739455843147,3.84368008,2638.7,2638.6,3.78988]
[1739455843325,3.84368008,2638.7,2638.5,3.79002]
[1739455843576,3.84368008,2638.7,2638.5,3.78994]
[1739455843758,3.84368008,2638.7,2638.6,3.78988]
[1739455844160,3.89408289,2638.7,2638.6,4.55918]
[1739455844474,3.84368008,2638.7,2638.6,4.55918]
[1739455844681,3.78843,2639.7,2638.6,4.55918]
[1739455845002,0.7994,2640.3,2638.6,4.55918]
[1739455845003,0.05020321,2639.6,2638.9,3.78937]
[1739455845142,3.78883,2639.4,2638.7,3.78971]
[1739455845338,3.7891,2639.2,2638.6,0.7693]
[1739455845607,0.05020321,2639.1,2638.3,3.79023]
[1739455845742,0.05020321,2639.1,2638.0,0.7697]
[1739455845743,2.275,2639.0,2638.0,0.7697]
[1739455845942,3.79011,2638.5,2637.8,3.79092]
[1739455846137,0.05042907,2638.4,2637.6,6.14155731]
[1739455846448,3.79011,2638.5,2637.9,3.79084]
[1739455846643,3.79011,2638.5,2637.6,6.14155731]
[1739455846644,3.79021,2638.4,2637.8,3.79099]
[1739455846873,0.05042907,2638.4,2637.9,3.79077]
[1739455847079,0.05042907,2638.4,2638.0,3.79067]
[1739455847382,0.05042907,2638.4,2637.9,3.79077]
[1739455847383,3.78931,2639.0,2638.2,3.79034]
[1739455847593,3.78962,2638.8,2637.4,0.7697]
[1739455847887,3.83996907,2638.9,2638.0,3.79062]
[1739455848089,0.05042907,2638.9,2637.7,3.0]
[1739455848300,3.78867,2639.5,2637.7,3.0]
[1739455848591,0.05042907,2639.4,2639.1,3.78906]
[1739455848940,3.78849,2639.6,2639.0,3.7892]
[1739455849184,0.04862803,2639.5,2639.1,3.78914]
[1739455849557,3.78832,2639.7,2639.1,3.78908]
[1739455849802,0.04862803,2639.4,2639.1,3.78908]
[1739455849971,3.78823,2639.8,2639.1,3.78908]
[1739455850289,0.04862803,2639.3,2639.0,3.78918]
[1739455850494,3.78802,2639.9,2638.7,3.7897]
[1739455850693,0.7615,2640.3,2638.7,3.7897]
[1739455850694,0.04862803,2639.2,2639.1,3.78917]
[1739455850990,0.804,2640.9,2639.2,3.0]
[1739455851158,3.78791,2640.0,2639.2,3.78899]
[1739455851363,3.78784,2640.1,2639.4,3.78867]
[1739455851559,0.804,2640.9,2638.6,6.14155731]
[1739455851763,3.82992724,2640.0,2639.5,3.78855]
[1739455851963,3.78791,2640.0,2639.3,3.78879]
[1739455852144,3.78817,2639.8,2639.3,3.78879]
[1739455852347,0.042495,2639.7,2638.8,3.7896]
[1739455852581,3.78762,2640.2,2639.6,3.78845]
[1739455852779,0.042495,2639.6,2639.0,3.78927]
[1739455852975,1.57949672,2640.9,2639.9,3.7879]
[1739455853194,3.78717,2640.5,2639.9,3.7879]
[1739455853488,3.78732,2640.4,2639.7,3.78819]
[1739455853648,0.804,2640.9,2639.1,6.14155731]
[1739455853847,3.78767,2640.2,2639.5,3.78848]
[1739455854095,3.78788,2640.0,2639.4,3.78869]
[1739455854397,3.78763,2640.2,2639.1,3.78909]
[1739455854574,0.04115738,2639.9,2639.1,3.78909]
[1739455854890,0.04126245,2640.1,2638.8,1.29311573]
[1739455855092,0.0412572,2639.8,2639.6,3.78836]
[1739455855250,0.27662045,2640.1,2639.8,3.78814]
[1739455855449,4.5e-07,2640.1,2640.0,3.78787]
[1739455855898,4.5e-07,2640.1,2639.7,10.56571]
[1739455856197,4.5e-07,2640.1,2639.3,3.78883]
[1739455856198,3.78813,2639.9,2639.3,3.78877]
[1739455856405,3.78813,2639.9,2639.4,3.78866]
[1739455856708,4.5e-07,2640.1,2639.0,0.7705]
[1739455856849,3.78803,2639.9,2639.1,3.78917]
[1739455857049,3.78851,2639.6,2639.0,3.78926]
[1739455857278,3.78812,2639.9,2638.7,3.78969]
[1739455857478,3.78816,2639.8,2639.2,3.78893]
[1739455857690,3.78841,2639.7,2639.0,3.7893]
[1739455857850,3.78861,2639.5,2639.0,3.7893]
[1739455858268,0.804,2640.4,2638.6,6.14155731]
[1739455858269,3.78804,2639.9,2639.2,3.78901]
[1739455858460,3.78804,2639.9,2638.6,6.14155731]
[1739455858461,0.03660921,2639.4,2639.0,3.78922]
[1739455858664,3.78813,2639.9,2639.3,3.78884]
[1739455858900,0.804,2640.4,2639.0,3.78919]
[1739455858901,3.78848,2639.6,2639.0,3.78919]
[1739455859111,3.78819,2639.8,2639.3,3.78887]
[1739455859418,3.78819,2639.8,2639.2,3.78894]
[1739455859558,0.0075,2640.1,2638.5,0.7988]
[1739455859753,3.78961,2638.8,2638.1,6.007]
[1739455859963,3.78954,2638.9,2638.3,3.79018]
[1739455860404,3.78946,2638.9,2638.3,3.79018]
[1739455860723,3.78991,2638.6,2638.0,4.54541]
[1739455861003,3.79004,2638.5,2637.7,3.79116]
[1739455861233,4.559,2639.3,2637.4,1.13167]
[1739455861378,0.7625,2639.3,2637.6,6.14155731]
[1739455861553,3.78926,2639.1,2638.4,3.79006]
[1739455861758,4.55143,2639.3,2638.1,3.79056]
[1739455861953,3.78866,2639.5,2638.2,0.03789346]
[1739455862197,3.78875,2639.4,2638.7,3.7896]
[1739455862432,3.78874,2639.4,2638.7,3.7896]
[1739455862635,3.78866,2639.5,2638.8,3.7895]
[1739455862819,0.804,2639.8,2639.3,3.78887]
[1739455863149,7.57624,2639.9,2639.3,3.78887]
[1739455863362,3.079,2640.3,2638.8,0.75791]
[1739455863666,2.275,2639.9,2638.7,3.78969]
[1739455863803,0.804,2640.3,2638.6,0.03789087]
[1739455863994,3.78816,2639.8,2639.2,3.78895]
[1739455864195,0.804,2640.3,2639.6,3.78838]
[1739455864454,3.78488,2642.1,2639.6,3.78838]
[1739455864455,3.78673,2640.8,2640.1,3.78771]
[1739455864650,3.78689,2640.7,2640.1,3.78763]
[1739455864914,3.78741,2640.4,2639.7,3.7882]
[1739455865133,0.804,2640.9,2639.3,0.7864]
[1739455865340,2.275,2640.8,2639.3,0.7864]
[1739455865515,3.78764,2640.2,2639.6,3.78843]
[1739455865722,3.78764,2640.2,2639.6,7.57686]
[1739455865928,3.78764,2640.2,2639.3,0.7864]
[1739455865929,0.804,2640.9,2639.3,0.7864]
[1739455866141,0.804,2640.9,2640.0,3.78786]
[1739455866341,0.804,2640.9,2639.3,0.7864]
[1739455866342,3.78703,2640.6,2639.9,3.78798]
[1739455866574,3.78703,2640.6,2639.3,3.7864]
[1739455866575,3.079,2640.9,2639.6,3.78842]
[1739455866781,3.78753,2640.3,2639.7,3.78819]
[1739455867078,2.275,2640.6,2639.2,3.78893]
[1739455867221,3.78785,2640.1,2639.5,3.78856]
[1739455867421,3.78877,2639.4,2638.8,10.57791]
[1739455867617,3.78877,2639.4,2638.8,6.007]
[1739455867866,0.0075,2640.4,2638.8,6.007]
[1739455867867,3.78794,2640.0,2638.8,10.83475516]
[1739455868040,3.78755,2640.3,2639.6,3.78836]
[1739455868239,0.804,2640.6,2639.7,3.7883]
[1739455868441,3.78741,2640.4,2639.7,7.57652]
[1739455868671,3.78718,2640.5,2639.2,4.78986643]
[1739455868858,3.78733,2640.4,2639.7,3.7883]
[1739455869072,3.78761,2640.2,2639.7,3.7883]
[1739455869241,3.78733,2640.4,2639.8,3.78814]
[1739455869436,3.78745,2640.3,2639.7,3.7883]
[1739455869729,2.275,2641.1,2639.7,3.7883]
[1739455869730,0.7854,2641.2,2639.8,0.03787406]
[1739455869973,3.78696,2640.7,2640.1,3.78764]
[1739455870362,3.78705,2640.6,2640.1,3.78764]
[1739455870735,0.7854,2641.2,2640.5,3.78713]
[1739455871023,0.7854,2641.2,2640.5,3.78711]
[1739455871235,3.7861,2641.3,2640.6,3.78701]
[1739455871409,3.78645,2641.0,2640.4,3.78722]
[1739455871586,3.78645,2641.0,2640.4,3.78723]
[1739455871792,3.78622,2641.2,2640.0,4.78986643]
[1739455871987,3.78683,2640.8,2640.2,3.7875]
[1739455872296,3.78603,2641.3,2640.6,3.78691]
[1739455872498,3.78603,2641.3,2640.8,3.78671]
[1739455872685,0.7859,2641.9,2640.8,3.78671]
[1739455872686,3.78572,2641.6,2640.8,3.78671]
[1739455872996,0.7859,2641.9,2640.2,3.7875]
[1739455872997,3.78677,2640.8,2640.2,3.7875]
[1739455873168,7.57247,2641.2,2640.1,3.85778364]
[1739455873368,3.78645,2641.0,2640.5,3.78702]
[1739455873608,7.57299,2641.0,2640.4,3.7872]
[1739455873826,3.78641,2641.1,2640.4,3.7872]
[1739455874005,3.78665,2640.9,2640.3,3.78744]
[1739455874201,4.57113,2641.9,2639.7,4.61857]
[1739455874202,0.7859,2641.9,2640.6,3.7869]
[1739455874402,0.7859,2641.9,2640.7,0.03786389]
[1739455874750,3.78611,2641.3,2640.7,3.78677]
[1739455874963,0.27649031,2641.8,2640.4,4.78986643]
[1739455875158,3.78599,2641.4,2640.6,4.60741]
[1739455875350,3.78576,2641.5,2640.9,3.78646]
[1739455875487,3.78564,2641.6,2640.6,0.8204]
[1739455875692,3.78653,2641.0,2640.6,0.8204]
[1739455875920,3.7862,2641.2,2640.6,3.78694]
[1739455876100,3.7859,2641.4,2640.7,3.78676]
[1739455876319,3.7859,2641.4,2640.9,3.78651]
[1739455876520,3.78559,2641.6,2641.0,3.78634]
[1739455876719,3.78582,2641.5,2640.9,3.78657]
[1739455876904,3.78591,2641.4,2640.7,3.78682]
[1739455877105,3.78591,2641.4,2640.2,3.0]
[1739455877106,3.78582,2641.5,2640.4,4.78986643]
[1739455877442,0.0922847,2642.0,2641.9,3.78515]
[1739455877666,0.0922847,2642.0,2641.9,3.82299799]
[1739455877948,0.0922847,2642.0,2641.9,3.78515]
[1739455878252,0.0922847,2642.0,2641.9,3.82299443]
[1739455878546,0.0922847,2642.0,2641.9,3.78515]
[1739455878906,3.78319,2643.3,2642.0,3.7506]
[1739455879107,3.78314,2643.3,2642.0,4.53552]
[1739455879419,4.5356,2643.2,2642.6,3.78412]
[1739455879637,0.005,2643.4,2643.0,3.78348]
[1739455879915,0.005,2643.4,2643.3,3.78314]
[1739455880117,0.005,2643.4,2642.6,3.7841]
[1739455880348,0.005,2643.4,2642.7,3.78398]
[1739455880652,0.005,2643.4,2642.5,4.78986643]
[1739455881006,3.78347,2643.1,2642.5,3.78417]
[1739455881370,3.78345,2643.1,2642.5,3.78417]
[1739455881573,0.005,2643.4,2642.0,0.7506]
[1739455881888,0.005,2643.4,2639.9,0.2]
[1739455881889,3.78412,2642.7,2641.5,0.8293]
[1739455882097,3.78404,2642.7,2642.0,3.78487]
[1739455882231,3.78381,2642.9,2642.1,3.78483]
[1739455882433,3.78428,2642.6,2641.9,3.78515]
[1739455882756,3.78359,2643.0,2642.3,3.78447]
[1739455882959,0.7801,2643.3,2642.2,0.0378448]
[1739455883154,0.7801,2643.3,2642.6,3.78402]
[1739455883630,0.7801,2643.3,2642.1,4.78986643]
[1739455883966,3.78392,2642.8,2642.0,3.78487]
[1739455884173,3.78392,2642.8,2642.1,3.78477]
[1739455884471,3.78346,2643.1,2642.4,3.7844]
[1739455884641,3.78352,2643.1,2642.4,3.7844]
[1739455885024,3.78367,2643.0,2642.4,3.7844]
[1739455885590,3.0551,2643.3,2641.8,3.78519]
[1739455885785,3.0551,2643.3,2642.0,3.78491]
[1739455885786,3.78411,2642.7,2642.0,3.78491]
[1739455885941,3.78427,2642.6,2642.0,3.78491]
[1739455886482,2.8325,2643.0,2641.6,0.06922211]
[1739455886682,3.78525,2641.9,2641.6,0.06922211]
[1739455886881,3.78517,2641.9,2641.6,0.06922211]
[1739455887095,3.78538,2641.8,2641.6,0.06922211]
[1739455887244,0.681,2642.5,2641.6,0.06922211]
[1739455887585,3.78498,2642.1,2641.6,0.06922211]
[1739455887783,4.46535,2642.5,2641.6,0.06922211]
[1739455887784,3.78544,2641.7,2641.6,0.06922211]
[1739455888285,3.78572,2641.5,2640.4,0.7645]
[1739455888445,3.78639,2641.1,2640.5,3.78706]
[1739455888640,0.804,2641.6,2640.5,3.78714]
[1739455889041,3.78616,2641.2,2640.6,3.7869]
[1739455889261,7.57188,2641.4,2640.7,3.78677]
[1739455889594,4.58968,2641.6,2640.9,3.78646]
[1739455889891,3.78653,2641.0,2640.3,3.7873]
[1739455890181,3.78653,2641.0,2640.1,4.78986643]
[1739455890182,3.78623,2641.2,2640.4,3.78728]
[1739455890385,3.78661,2640.9,2640.3,3.7874]
[1739455890686,3.78636,2641.1,2640.1,8.57746643]
[1739455890687,3.78636,2641.1,2640.5,3.78703]
[1739455890987,3.78623,2641.2,2640.2,3.78759]
[1739455891187,3.78623,2641.2,2640.6,3.78697]
[1739455891369,3.78643,2641.1,2640.4,7.57446]
[1739455891578,3.78623,2641.2,2640.1,8.57750643]
[1739455891779,3.78623,2641.2,2640.6,3.787]
[1739455892177,3.78682,2640.8,2639.9,0.7792]
[1739455892492,3.78682,2640.8,2639.7,4.78986643]
[1739455892493,3.78726,2640.5,2639.3,4.55003]
[1739455892722,3.78691,2640.7,2640.1,3.78771]
[1739455892926,3.78684,2640.8,2640.1,3.78771]
[1739455893080,3.78703,2640.6,2640.1,3.78771]
[1739455893281,3.78684,2640.8,2640.1,3.78771]
[1739455893282,3.78684,2640.8,2640.1,3.78762]
[1739455893482,0.0075,2641.4,2639.3,5.55106643]
[1739455893483,0.665,2641.4,2639.7,4.8277389]
[1739455893796,3.78667,2640.9,2640.2,3.78747]
[1739455894008,3.78678,2640.8,2640.2,3.78747]
[1739455894551,3.78623,2641.2,2639.4,6.78871]
[1739455894768,3.78721,2640.5,2639.9,3.78801]
[1739455895064,3.78644,2641.0,2639.7,3.78824]
[1739455895260,3.78702,2640.6,2640.0,3.78778]
[1739455895536,6.06123,2641.2,2640.0,3.78778]
[1739455895537,3.78676,2640.8,2640.0,3.78778]
[1739455895695,0.804,2641.6,2640.1,0.03787244]
[1739455895896,3.78652,2641.0,2640.3,3.7873]
[1739455896091,0.658,2641.5,2640.0,3.78787]
[1739455896346,3.78636,2641.1,2639.8,3.0]
[1739455896561,3.78645,2641.0,2640.4,3.78722]
[1739455896869,0.658,2641.5,2639.8,3.0]
[1739455897171,3.78686,2640.8,2639.9,3.78802]
[1739455897309,3.78686,2640.8,2639.7,4.78986643]
[1739455897505,3.78624,2641.2,2639.7,5.56885307]
[1739455897709,3.78623,2641.2,2640.6,3.78687]
[1739455897928,0.93058292,2641.4,2639.7,5.56885307]
[1739455898170,0.27558292,2641.4,2640.4,3.7873]
[1739455898460,0.27558292,2641.4,2640.3,0.7537]
[1739455898461,0.27558292,2641.4,2641.3,3.78601]
[1739455898683,0.27558292,2641.4,2640.8,3.78665]
[1739455898968,0.27558292,2641.4,2641.0,3.78636]
[1739455899127,4.43923,2641.9,2641.3,3.78589]
[1739455899323,0.654,2641.9,2641.5,3.78569]
[1739455899523,0.654,2641.9,2640.5,4.78986643]
[1739455899524,0.654,2641.9,2641.4,3.78578]
[1739455900152,0.654,2641.9,2641.8,3.78529]
[1739455900506,0.7048007,2641.9,2641.8,3.78529]
[1739455901006,0.7048007,2641.9,2641.5,3.78564]
[1739455901202,0.7048007,2641.9,2641.8,3.78529]
[1739455901504,0.0508007,2641.9,2641.8,3.78529]
[1739455902352,7e-07,2641.9,2641.8,4.542362]
[1739455902649,7e-07,2641.9,2641.8,3.78529]
[1739455903017,7e-07,2641.9,2641.5,3.78559]
[1739455903219,7e-07,2641.9,2641.4,3.78587]
[1739455903424,7e-07,2641.9,2641.5,3.78563]
[1739455903635,3.78538,2641.8,2641.1,3.78629]
[1739455903834,3.78529,2641.8,2641.1,3.78625]
[1739455904035,3.78529,2641.8,2641.1,3.78621]
[1739455904364,7e-07,2641.9,2641.2,3.78602]
[1739455904510,7e-07,2641.9,2641.3,3.7859]
[1739455904708,7e-07,2641.9,2640.8,3.78673]
[1739455904910,7e-07,2641.9,2640.9,3.78658]
[1739455905220,7e-07,2641.9,2641.4,3.78575]
[1739455905620,7e-07,2641.9,2641.2,3.78612]
[1739455905822,3.78572,2641.6,2641.0,3.78641]
[1739455906152,0.7664,2641.8,2640.8,3.78664]